fUSD/lending_fUSD_20250112
["ID","MTS","AMOUNT","RATE_DAILY","PERIOD"]
[348646923,1736698233627,-500.0,9.798e-05,2]
[348646925,1736698233637,-500.0,9.798e-05,2]
[348646927,1736698233647,-500.0,9.798e-05,2]
[348646929,1736698233656,-396.37850088,9.798e-05,2]
[348646933,1736698233685,-103.62149912,9.798e-05,2]
[348646935,1736698233694,-455.01926322,9.798e-05,2]
[348646938,1736698233707,-44.98073678,9.798e-05,2]
[348646940,1736698233716,-500.0,9.798e-05,2]
[348646942,1736698233726,-500.0,9.798e-05,2]
[348646944,1736698233735,-500.0,9.798e-05,2]
[348646946,1736698233745,-500.0,9.798e-05,2]
[348646947,1736698233754,-308.81680489,9.798e-05,2]
[348646948,1736698233766,-191.18319511,9.798e-05,2]
[348646949,1736698233775,-335.55940827,9.798e-05,2]
[348646950,1736698233786,-164.44059173,9.798e-05,2]
[348646951,1736698233796,-143.39280827,9.798e-05,2]
[348646952,1736698233808,-356.60719173,9.798e-05,2]
[348646953,1736698233817,-140.25373544,9.798e-05,2]
[348646954,1736698233838,-397.500005,9.798e-05,2]
[348646955,1736698233850,-66.79625956,9.798e-05,2]
[348646956,1736698233860,-824.32,9.798e-05,2]
[348646957,1736698233869,-138.05332344,9.798e-05,2]
[348646958,1736698233880,-361.94667656,9.798e-05,2]
[348646959,1736698233890,-500.0,9.798e-05,2]
[348646960,1736698233900,-500.0,9.798e-05,2]
[348646961,1736698233909,-500.0,9.798e-05,2]
[348646962,1736698233919,-587.9461012,9.798e-05,2]
[348646963,1736698233928,-572.61,9.798e-05,2]
[348646964,1736698233938,-500.0,9.798e-05,2]
[348646965,1736698233947,-500.0,9.798e-05,2]
[348646966,1736698233956,-500.0,9.798e-05,2]
[348646967,1736698233966,-500.0,9.798e-05,2]
[348646968,1736698233975,-500.0,9.798e-05,2]
[348646969,1736698233984,-737.79,9.798e-05,2]
[348646970,1736698233994,-2030.34,9.798e-05,2]
[348646971,1736698234003,-500.0,9.798e-05,2]
[348646972,1736698234013,-500.0,9.798e-05,2]
[348646973,1736698234023,-778.33,9.798e-05,2]
[348646974,1736698234032,-674.75,9.798e-05,2]
[348646975,1736698234042,-500.0,9.798e-05,2]
[348646976,1736698234051,-627.29,9.798e-05,2]
[348646977,1736698234060,-500.0,9.798e-05,2]
[348646978,1736698234070,-226.56958368,9.798e-05,2]
[348646979,1736698234080,-500.0,9.798e-05,2]
[348646980,1736698234089,-500.0,9.798e-05,2]
[348646981,1736698234099,-500.0,9.798e-05,2]
[348646982,1736698234108,-500.0,9.798e-05,2]
[348646983,1736698234118,-2555.28,9.798e-05,2]
[348646984,1736698234127,-500.0,9.798e-05,2]
[348646985,1736698234136,-500.0,9.798e-05,2]
[348646986,1736698234146,-500.0,9.798e-05,2]
[348646987,1736698234155,-500.0,9.798e-05,2]
[348646988,1736698234164,-503.03803374,9.798e-05,2]
[348646989,1736698234174,-47.8863776,9.798e-05,2]
[348646990,1736698234201,-1051.9136224,9.798e-05,2]
[348646991,1736698234212,-98.70524553,9.798e-05,2]
[348646992,1736698234224,-670.81475447,9.798e-05,2]
[348646993,1736698234235,-500.0,9.798e-05,2]
[348646994,1736698234244,-500.0,9.798e-05,2]
[348646995,1736698234254,-500.0,9.798e-05,2]
[348646996,1736698234263,-822.56,9.798e-05,2]
[348646997,1736698234273,-500.0,9.798e-05,2]
[348646998,1736698234283,-500.0,9.798e-05,2]
[348646999,1736698234292,-500.0,9.798e-05,2]
[348647000,1736698234302,-500.0,9.798e-05,2]
[348647001,1736698234311,-135.05958273,9.798e-05,2]
[348647002,1736698234324,-364.94041727,9.798e-05,2]
[348647003,1736698234340,-435.05958273,9.798e-05,2]
[348647004,1736698234352,-64.94041727,9.798e-05,2]
[348647005,1736698234361,-500.0,9.798e-05,2]
[348647006,1736698234372,-500.0,9.798e-05,2]
[348647007,1736698234382,-661.75,9.798e-05,2]
[348647008,1736698234392,-568.57,9.798e-05,2]
[348647009,1736698234401,-500.0,9.798e-05,2]
[348647010,1736698234411,-500.0,9.798e-05,2]
[348647011,1736698234420,-500.0,9.798e-05,2]
[348647012,1736698234430,-500.0,9.798e-05,2]
[348647013,1736698234439,-500.0,9.798e-05,2]
[348647014,1736698234449,-1321.1,9.798e-05,2]
[348647015,1736698234458,-739.69,9.798e-05,2]
[348647016,1736698234468,-500.0,9.798e-05,2]
[348647017,1736698234478,-500.0,9.798e-05,2]
[348647018,1736698234488,-500.0,9.798e-05,2]
[348647019,1736698234498,-524.34332142,9.798e-05,2]
[348647020,1736698234507,-500.0,9.798e-05,2]
[348647021,1736698234518,-500.0,9.798e-05,2]
[348647022,1736698234527,-500.0,9.798e-05,2]
[348647023,1736698234537,-500.0,9.798e-05,2]
[348647024,1736698234547,-712.08,9.798e-05,2]
[348647025,1736698234557,-500.0,9.798e-05,2]
[348647026,1736698234567,-500.0,9.798e-05,2]
[348647027,1736698234577,-500.0,9.798e-05,2]
[348647028,1736698234586,-500.0,9.798e-05,2]
[348647029,1736698234595,-500.0,9.798e-05,2]
[348647030,1736698234604,-500.0,9.798e-05,2]
[348647031,1736698234613,-500.0,9.798e-05,2]
[348647032,1736698234623,-500.0,9.798e-05,2]
[348647033,1736698234632,-500.0,9.798e-05,2]
[348647034,1736698234641,-500.0,9.798e-05,2]
[348647035,1736698234650,-500.0,9.798e-05,2]
[348647036,1736698234659,-503.10245252,9.798e-05,2]
[348647037,1736698234669,-500.0,9.798e-05,2]
[348647038,1736698234678,-500.0,9.798e-05,2]
[348647039,1736698234687,-500.0,9.798e-05,2]
[348647040,1736698234697,-500.0,9.798e-05,2]
[348647041,1736698234706,-1250.26,9.798e-05,2]
[348647042,1736698234715,-500.0,9.798e-05,2]
[348647043,1736698234724,-520.917218,9.798e-05,2]
[348647044,1736698234733,-500.0,9.798e-05,2]
[348647045,1736698234743,-500.0,9.798e-05,2]
[348647046,1736698234752,-500.0,9.798e-05,2]
[348647047,1736698234761,-500.0,9.798e-05,2]
[348647048,1736698234771,-159.685804,9.798e-05,2]
[348647049,1736698234780,-720.34,9.798e-05,2]
[348647050,1736698234790,-500.0,9.798e-05,2]
[348647051,1736698234800,-500.0,9.798e-05,2]
[348647052,1736698234809,-500.0,9.798e-05,2]
[348647053,1736698234819,-500.0,9.798e-05,2]
[348647054,1736698234829,-500.0,9.798e-05,2]
[348647055,1736698234838,-156.99513,9.798e-05,2]
[348647056,1736698234847,-500.0,9.798e-05,2]
[348647057,1736698234857,-500.0,9.798e-05,2]
[348647058,1736698234866,-47.17615359,9.798e-05,2]
[348647064,1736698238011,-698.56,9.797e-05,2]
[348647065,1736698238021,-62.065831,9.797e-05,2]
[348647066,1736698238032,-478.31959918,9.797e-05,2]
[348647067,1736698238043,-171.14456982,9.797e-05,2]
[348647068,1736698238052,-331.88656141,9.798e-05,2]
[348647069,1736698238159,-207.497285,9.798e-05,2]
[348647070,1736698238169,-500.0,9.798e-05,2]
[348647071,1736698238178,-1947.94,9.798e-05,2]
[348647072,1736698238187,-500.0,9.798e-05,2]
[348647073,1736698238196,-500.0,9.798e-05,2]
[348647074,1736698238205,-500.0,9.798e-05,2]
[348647075,1736698238214,-500.0,9.798e-05,2]
[348647076,1736698238223,-874.09,9.798e-05,2]
[348647077,1736698238233,-500.0,9.798e-05,2]
[348647078,1736698238242,-500.4812208,9.798e-05,2]
[348647079,1736698238251,-501.87636153,9.798e-05,2]
[348647080,1736698238260,-500.0,9.798e-05,2]
[348647081,1736698238270,-477.985251,9.798e-05,2]
[348647083,1736698238279,-500.0,9.798e-05,2]
[348647084,1736698238288,-500.0,9.798e-05,2]
[348647085,1736698238296,-500.0,9.798e-05,2]
[348647086,1736698238306,-1912.02,9.798e-05,2]
[348647087,1736698238315,-500.0,9.798e-05,2]
[348647088,1736698238325,-500.0,9.798e-05,2]
[348647089,1736698238337,-750.64,9.798e-05,2]
[348647090,1736698238347,-500.0,9.798e-05,2]
[348647091,1736698238358,-500.0,9.798e-05,2]
[348647092,1736698238368,-500.0,9.798e-05,2]
[348647093,1736698238382,-500.0,9.798e-05,2]
[348647095,1736698238391,-500.0,9.798e-05,2]
[348647097,1736698238401,-6413.91,9.798e-05,2]
[348647098,1736698238411,-507.01333084,9.798e-05,2]
[348647099,1736698238420,-500.0,9.798e-05,2]
[348647100,1736698238430,-440.57066798,9.798e-05,2]
[348647102,1736698238439,-574.46,9.798e-05,2]
[348647104,1736698238448,-500.0,9.798e-05,2]
[348647106,1736698238457,-500.0,9.798e-05,2]
[348647108,1736698238466,-500.0,9.798e-05,2]
[348647110,1736698238475,-500.0,9.798e-05,2]
[348647112,1736698238484,-500.0,9.798e-05,2]
[348647113,1736698238494,-663.35,9.798e-05,2]
[348647114,1736698238504,-500.0,9.798e-05,2]
[348647115,1736698238513,-500.0,9.798e-05,2]
[348647116,1736698238523,-173.73123733,9.798e-05,2]
[348647117,1736698238535,-500.0,9.798e-05,2]
[348647118,1736698238544,-500.0,9.798e-05,2]
[348647119,1736698238555,-500.0,9.798e-05,2]
[348647120,1736698238564,-500.0,9.798e-05,2]
[348647121,1736698238574,-707.41,9.798e-05,2]
[348647122,1736698238584,-618.3,9.798e-05,2]
[348647123,1736698238593,-500.0,9.798e-05,2]
[348647124,1736698238603,-500.0,9.798e-05,2]
[348647125,1736698238612,-500.0,9.798e-05,2]
[348647126,1736698238621,-535.4671915,9.798e-05,2]
[348647127,1736698238630,-500.0,9.798e-05,2]
[348647128,1736698238639,-500.0,9.798e-05,2]
[348647129,1736698238648,-500.0,9.798e-05,2]
[348647130,1736698238658,-500.0,9.798e-05,2]
[348647131,1736698238667,-580.09,9.798e-05,2]
[348647132,1736698238676,-500.0,9.798e-05,2]
[348647133,1736698238686,-500.0,9.798e-05,2]
[348647134,1736698238695,-500.0,9.798e-05,2]
[348647135,1736698238704,-500.0,9.798e-05,2]
[348647136,1736698238713,-3816.01,9.798e-05,2]
[348647137,1736698238938,-763.36,9.798e-05,2]
[348647138,1736698238947,-994.13,9.798e-05,2]
[348647139,1736698238957,-500.0,9.798e-05,2]
[348647140,1736698238967,-500.0,9.798e-05,2]
[348647141,1736698238977,-500.0,9.798e-05,2]
[348647142,1736698238986,-817.51,9.798e-05,2]
[348647143,1736698238995,-500.0,9.798e-05,2]
[348647144,1736698239005,-500.0,9.798e-05,2]
[348647145,1736698239014,-500.0,9.798e-05,2]
[348647146,1736698239026,-553.72,9.798e-05,2]
[348647147,1736698239036,-500.0,9.798e-05,2]
[348647148,1736698239045,-500.0,9.798e-05,2]
[348647149,1736698239055,-1800.29,9.798e-05,2]
[348647150,1736698239065,-500.0,9.798e-05,2]
[348647151,1736698239075,-500.0,9.798e-05,2]
[348647152,1736698239085,-3410.99,9.798e-05,2]
[348647153,1736698239094,-785.84,9.798e-05,2]
[348647154,1736698239104,-500.0,9.798e-05,2]
[348647155,1736698239113,-500.0,9.798e-05,2]
[348647156,1736698239123,-522.5626517,9.798e-05,2]
[348647157,1736698239133,-500.0,9.798e-05,2]
[348647158,1736698239143,-500.0,9.798e-05,2]
[348647159,1736698239152,-500.0,9.798e-05,2]
[348647160,1736698239162,-811.26,9.798e-05,2]
[348647161,1736698239171,-544.71,9.798e-05,2]
[348647162,1736698239181,-500.0,9.798e-05,2]
[348647163,1736698239191,-702.98,9.798e-05,2]
[348647164,1736698239200,-500.0,9.798e-05,2]
[348647165,1736698239210,-2588.92,9.798e-05,2]
[348647166,1736698239219,-472.48458383,9.798e-05,2]
[348647167,1736698239228,-500.0,9.798e-05,2]
[348647168,1736698239238,-500.0,9.798e-05,2]
[348647169,1736698239248,-2758.27,9.798e-05,2]
[348647170,1736698239259,-500.0,9.798e-05,2]
[348647171,1736698239269,-500.0,9.798e-05,2]
[348647172,1736698239279,-500.0,9.798e-05,2]
[348647173,1736698239288,-500.0,9.798e-05,2]
[348647174,1736698239297,-500.0,9.798e-05,2]
[348647175,1736698239308,-500.0,9.798e-05,2]
[348647176,1736698239318,-1069.66,9.798e-05,2]
[348647177,1736698239330,-2968.94,9.798e-05,2]
[348647178,1736698239339,-500.0,9.798e-05,2]
[348647179,1736698239349,-500.0,9.798e-05,2]
[348647180,1736698239359,-724.64,9.798e-05,2]
[348647181,1736698239368,-832.82,9.798e-05,2]
[348647182,1736698239378,-587.24024326,9.798e-05,2]
[348647183,1736698239387,-500.0,9.798e-05,2]
[348647184,1736698239397,-500.0,9.798e-05,2]
[348647185,1736698239406,-500.0,9.798e-05,2]
[348647186,1736698239415,-549.09,9.798e-05,2]
[348647187,1736698239425,-500.0,9.798e-05,2]
[348647188,1736698239434,-677.23,9.798e-05,2]
[348647189,1736698239444,-697.25,9.798e-05,2]
[348647190,1736698239453,-500.0,9.798e-05,2]
[348647191,1736698239462,-500.0,9.798e-05,2]
[348647192,1736698239471,-500.0,9.798e-05,2]
[348647193,1736698239481,-500.0,9.798e-05,2]
[348647194,1736698239490,-500.0,9.798e-05,2]
[348647195,1736698239499,-500.0,9.798e-05,2]
[348647196,1736698239508,-500.0,9.798e-05,2]
[348647197,1736698239518,-604.83,9.798e-05,2]
[348647198,1736698239527,-500.0,9.798e-05,2]
[348647199,1736698239537,-500.0,9.798e-05,2]
[348647200,1736698239547,-500.0,9.798e-05,2]
[348647201,1736698239557,-500.0,9.798e-05,2]
[348647202,1736698239566,-504.29442747,9.798e-05,2]
[348647203,1736698239576,-1761.21,9.798e-05,2]
[348647204,1736698239585,-500.0,9.798e-05,2]
[348647205,1736698239594,-500.0,9.798e-05,2]
[348647206,1736698239605,-551.92,9.798e-05,2]
[348647207,1736698239614,-500.0,9.798e-05,2]
[348647208,1736698239623,-500.0,9.798e-05,2]
[348647209,1736698239633,-701.02,9.798e-05,2]
[348647210,1736698239642,-500.0,9.798e-05,2]
[348647211,1736698239652,-504.78802334,9.798e-05,2]
[348647212,1736698239663,-500.0,9.798e-05,2]
[348647213,1736698239673,-500.0,9.798e-05,2]
[348647214,1736698239682,-500.0,9.798e-05,2]
[348647215,1736698239692,-500.0,9.798e-05,2]
[348647216,1736698239701,-1390.39,9.798e-05,2]
[348647217,1736698239710,-534.93,9.798e-05,2]
[348647218,1736698239719,-500.0,9.798e-05,2]
[348647219,1736698239728,-619.4,9.798e-05,2]
[348647220,1736698239738,-241.7,9.798e-05,2]
[348647221,1736698239747,-508.74181678,9.798e-05,2]
[348647222,1736698239756,-500.0,9.798e-05,2]
[348647223,1736698239765,-605.88162009,9.798e-05,2]
[348647224,1736698239775,-500.0,9.798e-05,2]
[348647225,1736698239784,-500.0,9.798e-05,2]
[348647226,1736698239794,-1118.37,9.798e-05,2]
[348647228,1736698239803,-667.23,9.798e-05,2]
[348647229,1736698239813,-190.12798754,9.798e-05,2]
[348647230,1736698239822,-500.0,9.798e-05,2]
[348647231,1736698239832,-250.56090493,9.798e-05,2]
[348647232,1736698239842,-500.0,9.798e-05,2]
[348647234,1736698239851,-539.66,9.798e-05,2]
[348647235,1736698239860,-500.0,9.798e-05,2]
[348647236,1736698239869,-500.0,9.798e-05,2]
[348647237,1736698239878,-1432.73,9.798e-05,2]
[348647238,1736698239888,-500.0,9.798e-05,2]
[348647239,1736698239897,-500.0,9.798e-05,2]
[348647240,1736698239907,-899.38,9.798e-05,2]
[348647241,1736698239916,-629.17,9.798e-05,2]
[348647242,1736698239926,-500.0,9.798e-05,2]
[348647243,1736698239935,-500.0,9.798e-05,2]
[348647244,1736698239945,-500.0,9.798e-05,2]
[348647245,1736698239955,-500.0,9.798e-05,2]
[348647246,1736698239964,-500.0,9.798e-05,2]
[348647247,1736698239974,-624.82,9.798e-05,2]
[348647248,1736698239983,-218.89883444,9.798e-05,2]
[348647249,1736698239992,-500.0,9.798e-05,2]
[348647250,1736698240001,-264.27033052,9.798e-05,2]
[348647251,1736698240011,-500.0,9.798e-05,2]
[348647252,1736698240021,-500.0,9.798e-05,2]
[348647253,1736698240030,-500.0,9.798e-05,2]
[348647254,1736698240039,-500.0,9.799e-05,2]
[348647255,1736698240049,-500.0,9.799e-05,2]
[348647256,1736698240059,-500.0,9.799e-05,2]
[348647257,1736698240068,-500.0,9.799e-05,2]
[348647258,1736698240078,-500.0,9.799e-05,2]
[348647259,1736698240087,-500.0,9.799e-05,2]
[348647260,1736698240097,-530.14,9.799e-05,2]
[348647261,1736698240107,-500.0,9.799e-05,2]
[348647262,1736698240117,-500.0,9.799e-05,2]
[348647263,1736698240127,-240.35,9.799e-05,2]
[348647264,1736698240136,-500.0,9.799e-05,2]
[348647265,1736698240146,-500.0,9.799e-05,2]
[348647266,1736698240155,-500.0,9.799e-05,2]
[348647267,1736698240163,-500.0,9.799e-05,2]
[348647268,1736698240173,-500.0,9.799e-05,2]
[348647269,1736698240182,-1085.53,9.799e-05,2]
[348647270,1736698240190,-500.0,9.799e-05,2]
[348647271,1736698240201,-500.0,9.799e-05,2]
[348647272,1736698240211,-502.8200631,9.799e-05,2]
[348647273,1736698240220,-500.0,9.799e-05,2]
[348647274,1736698240230,-500.0,9.799e-05,2]
[348647275,1736698240239,-2625.53,9.799e-05,2]
[348647276,1736698240248,-500.0,9.799e-05,2]
[348647277,1736698240257,-500.0,9.799e-05,2]
[348647278,1736698240267,-500.0,9.799e-05,2]
[348647279,1736698240276,-500.0,9.799e-05,2]
[348647280,1736698240285,-500.0,9.799e-05,2]
[348647281,1736698240294,-500.0,9.799e-05,2]
[348647282,1736698240303,-500.0,9.799e-05,2]
[348647283,1736698240313,-2931.62,9.799e-05,2]
[348647284,1736698240323,-500.0,9.799e-05,2]
[348647285,1736698240336,-500.0,9.799e-05,2]
[348647286,1736698240346,-500.0,9.799e-05,2]
[348647287,1736698240355,-500.0,9.799e-05,2]
[348647288,1736698240366,-500.0,9.799e-05,2]
[348647289,1736698240378,-500.0,9.799e-05,2]
[348647290,1736698240387,-500.0,9.799e-05,2]
[348647291,1736698240397,-500.0,9.799e-05,2]
[348647292,1736698240406,-500.0,9.799e-05,2]
[348647293,1736698240416,-500.0,9.799e-05,2]
[348647294,1736698240425,-500.0,9.799e-05,2]
[348647295,1736698240434,-500.0,9.799e-05,2]
[348647296,1736698240443,-500.0,9.799e-05,2]
[348647297,1736698240453,-500.0,9.799e-05,2]
[348647298,1736698240462,-500.0,9.799e-05,2]
[348647299,1736698240472,-500.0,9.799e-05,2]
[348647300,1736698240482,-500.0,9.799e-05,2]
[348647301,1736698240491,-500.65672481,9.799e-05,2]
[348647302,1736698240501,-500.0,9.799e-05,2]
[348647303,1736698240511,-500.0,9.799e-05,2]
[348647304,1736698240520,-500.0,9.799e-05,2]
[348647305,1736698240529,-500.0,9.799e-05,2]
[348647306,1736698240539,-500.0,9.799e-05,2]
[348647307,1736698240548,-500.0,9.799e-05,2]
[348647308,1736698240557,-500.0,9.799e-05,2]
[348647309,1736698240567,-500.0,9.799e-05,2]
[348647310,1736698240578,-316.01069244,9.799e-05,2]
[348647311,1736698240586,-500.0,9.799e-05,2]
[348647312,1736698240595,-272.84129481,9.799e-05,2]
[348647313,1736698240605,-500.0,9.799e-05,2]
[348647314,1736698240615,-315.93113447,9.799e-05,2]
[348647315,1736698240624,-500.0,9.799e-05,2]
[348647316,1736698240635,-500.0,9.799e-05,2]
[348647317,1736698240644,-500.0,9.799e-05,2]
[348647318,1736698240653,-500.0,9.799e-05,2]
[348647319,1736698240663,-315.10909698,9.799e-05,2]
[348647320,1736698240672,-500.0,9.799e-05,2]
[348647321,1736698240681,-207.50057929,9.799e-05,2]
[348647322,1736698240691,-500.0,9.799e-05,2]
[348647323,1736698240700,-500.0,9.799e-05,2]
[348647324,1736698240709,-500.0,9.799e-05,2]
[348647325,1736698240719,-315.81370781,9.799e-05,2]
[348647326,1736698240728,-1251.51,9.799e-05,2]
[348647327,1736698240737,-500.0,9.799e-05,2]
[348647328,1736698240746,-500.0,9.799e-05,2]
[348647329,1736698240756,-500.0,9.799e-05,2]
[348647330,1736698240765,-500.0,9.799e-05,2]
[348647331,1736698240774,-500.86498634,9.799e-05,2]
[348647332,1736698240783,-500.0,9.799e-05,2]
[348647333,1736698240792,-500.0,9.799e-05,2]
[348647334,1736698240802,-500.0,9.799e-05,2]
[348647335,1736698240811,-500.0,9.799e-05,2]
[348647336,1736698240821,-500.0,9.799e-05,2]
[348647337,1736698240830,-500.0,9.799e-05,2]
[348647338,1736698240839,-504.70814571,9.799e-05,2]
[348647339,1736698240848,-500.0,9.799e-05,2]
[348647340,1736698240857,-500.0,9.799e-05,2]
[348647341,1736698240866,-500.0,9.799e-05,2]
[348647342,1736698240875,-500.0,9.799e-05,2]
[348647343,1736698240885,-500.0,9.799e-05,2]
[348647344,1736698240894,-500.0,9.799e-05,2]
[348647345,1736698240904,-500.0,9.799e-05,2]
[348647346,1736698240913,-500.0,9.799e-05,2]
[348647347,1736698240922,-500.0,9.799e-05,2]
[348647348,1736698240931,-500.0,9.799e-05,2]
[348647349,1736698240940,-500.0,9.799e-05,2]
[348647350,1736698240949,-2826.27,9.799e-05,2]
[348647351,1736698240959,-500.0,9.799e-05,2]
[348647352,1736698240968,-500.0,9.799e-05,2]
[348647353,1736698240978,-500.0,9.799e-05,2]
[348647354,1736698240987,-500.0,9.799e-05,2]
[348647355,1736698240997,-500.0,9.799e-05,2]
[348647356,1736698241006,-500.0,9.799e-05,2]
[348647357,1736698241016,-500.0,9.799e-05,2]
[348647358,1736698241025,-500.0,9.799e-05,2]
[348647359,1736698241035,-500.0,9.799e-05,2]
[348647360,1736698241043,-500.0,9.799e-05,2]
[348647361,1736698241052,-500.0,9.799e-05,2]
[348647362,1736698241062,-500.0,9.799e-05,2]
[348647363,1736698241071,-500.0,9.799e-05,2]
[348647364,1736698241080,-500.0,9.799e-05,2]
[348647365,1736698241089,-500.0,9.799e-05,2]
[348647366,1736698241099,-500.0,9.799e-05,2]
[348647367,1736698241109,-500.0,9.799e-05,2]
[348647368,1736698241119,-500.0,9.799e-05,2]
[348647369,1736698241128,-578.26,9.799e-05,2]
[348647370,1736698241137,-500.0,9.799e-05,2]
[348647371,1736698241147,-500.0,9.799e-05,2]
[348647372,1736698241156,-500.0,9.799e-05,2]
[348647373,1736698241165,-503.31796945,9.799e-05,2]
[348647374,1736698241174,-500.0,9.799e-05,2]
[348647375,1736698241183,-501.89448189,9.799e-05,2]
[348647376,1736698241192,-500.0,9.799e-05,2]
[348647377,1736698241201,-500.0,9.799e-05,2]
[348647378,1736698241210,-500.0,9.799e-05,2]
[348647379,1736698241219,-500.0,9.799e-05,2]
[348647380,1736698241228,-500.0,9.799e-05,2]
[348647381,1736698241237,-500.0,9.799e-05,2]
[348647382,1736698241246,-500.0,9.799e-05,2]
[348647383,1736698241255,-500.0,9.799e-05,2]
[348647384,1736698241264,-500.0,9.799e-05,2]
[348647385,1736698241273,-500.0,9.799e-05,2]
[348647386,1736698241283,-500.0,9.799e-05,2]
[348647387,1736698241292,-500.0,9.799e-05,2]
[348647388,1736698241301,-639.94,9.799e-05,2]
[348647389,1736698241310,-500.0,9.799e-05,2]
[348647390,1736698241319,-500.0,9.799e-05,2]
[348647391,1736698241332,-500.0,9.799e-05,2]
[348647392,1736698241341,-500.0,9.799e-05,2]
[348647393,1736698241350,-500.0,9.799e-05,2]
[348647394,1736698241359,-25.10322832,9.799e-05,2]
[348647395,1736698241684,-263.9507748,9.799e-05,2]
[348647396,1736698241695,-210.94599688,9.799e-05,2]
[348647397,1736698241705,-500.0,9.799e-05,2]
[348647398,1736698241714,-500.0,9.799e-05,2]
[348647399,1736698241723,-506.34546506,9.799e-05,2]
[348647400,1736698241732,-500.0,9.799e-05,2]
[348647401,1736698241741,-500.0,9.799e-05,2]
[348647402,1736698241751,-500.0,9.799e-05,2]
[348647403,1736698241759,-500.0,9.799e-05,2]
[348647404,1736698241768,-500.0,9.799e-05,2]
[348647405,1736698241778,-500.0,9.799e-05,2]
[348647406,1736698241787,-500.0,9.799e-05,2]
[348647407,1736698241796,-500.0,9.799e-05,2]
[348647408,1736698241805,-500.0,9.799e-05,2]
[348647409,1736698241814,-500.0,9.799e-05,2]
[348647410,1736698241823,-423.20175011,9.799e-05,2]
[348647411,1736698242081,-527.03,9.798e-05,2]
[348647412,1736698242091,-76.79824989,9.799e-05,2]
[348647413,1736698242101,-500.0,9.799e-05,2]
[348647414,1736698242111,-527.2,9.799e-05,2]
[348647415,1736698242120,-500.0,9.799e-05,2]
[348647416,1736698242129,-500.0,9.799e-05,2]
[348647417,1736698242139,-501.23013184,9.799e-05,2]
[348647418,1736698242148,-500.0,9.799e-05,2]
[348647419,1736698242157,-500.0,9.799e-05,2]
[348647420,1736698242168,-91.51025722,9.799e-05,2]
[348647421,1736698242187,-317.98769101,9.799e-05,2]
[348647422,1736698242198,-90.50205177,9.799e-05,2]
[348647423,1736698242209,-561.92331851,9.799e-05,2]
[348647424,1736698242220,-500.0,9.799e-05,2]
[348647425,1736698242231,-500.0,9.799e-05,2]
[348647426,1736698242240,-500.0,9.799e-05,2]
[348647427,1736698242250,-526.05,9.799e-05,2]
[348647428,1736698242259,-500.0,9.799e-05,2]
[348647429,1736698242268,-500.0,9.799e-05,2]
[348647430,1736698242278,-500.0,9.799e-05,2]
[348647431,1736698242288,-500.0,9.799e-05,2]
[348647432,1736698242297,-500.0,9.799e-05,2]
[348647433,1736698242307,-500.0,9.799e-05,2]
[348647434,1736698242318,-500.0,9.799e-05,2]
[348647435,1736698242330,-500.0,9.799e-05,2]
[348647436,1736698242339,-500.0,9.799e-05,2]
[348647437,1736698242349,-500.0,9.799e-05,2]
[348647438,1736698242358,-500.0,9.799e-05,2]
[348647439,1736698242368,-500.0,9.799e-05,2]
[348647440,1736698242379,-536.07,9.799e-05,2]
[348647441,1736698242390,-500.0,9.799e-05,2]
[348647442,1736698242400,-500.0,9.799e-05,2]
[348647443,1736698242411,-500.0,9.799e-05,2]
[348647444,1736698242421,-500.0,9.799e-05,2]
[348647445,1736698242660,-500.0,9.799e-05,2]
[348647446,1736698242671,-500.0,9.799e-05,2]
[348647447,1736698242680,-500.0,9.799e-05,2]
[348647448,1736698242690,-500.0,9.799e-05,2]
[348647449,1736698242699,-500.0,9.799e-05,2]
[348647450,1736698242708,-500.0,9.799e-05,2]
[348647451,1736698242717,-500.0,9.799e-05,2]